[Event "Early-Titled-Tuesday-Blitz-March-26-2024"]
[Site "Chess.com"]
[Date "2024.03.26"]
[Round "5"]
[White "Russian_berezka"]
[Black "Szparu"]
[Result "0-1"]
[WhiteElo "2568"]
[BlackElo "2814"]
[TimeControl "180+1"]
[EndTime "8:55:05 PDT"]
[Termination "Szparu won by resignation"]

1. d4 {[%clk 0:03:00.9]} 1... d5 {[%clk 0:03:00]} 2. Bf4 {[%clk 0:03:00.6]} 2...
c5 {[%clk 0:03:00]} 3. e3 {[%clk 0:03:01.3]} 3... Nc6 {[%clk 0:02:59.3]} 4. c3
{[%clk 0:03:01.8]} 4... Qb6 {[%clk 0:02:59.7]} 5. Qb3 {[%clk 0:03:01.9]} 5... c4
{[%clk 0:03:00]} 6. Qc2 {[%clk 0:03:02.5]} 6... e5 {[%clk 0:02:59.8]} 7. dxe5
{[%clk 0:03:01.8]} 7... Bf5 {[%clk 0:02:59.8]} 8. Qc1 {[%clk 0:03:02.4]} 8... g5
{[%clk 0:02:58.9]} 9. Bxg5 {[%clk 0:03:01.3]} 9... Nxe5 {[%clk 0:02:59.1]} 10.
Nf3 {[%clk 0:03:00.1]} 10... Nd3+ {[%clk 0:02:35.2]} 11. Bxd3 {[%clk 0:02:59.7]}
11... Bxd3 {[%clk 0:02:36.1]} 12. Ne5 {[%clk 0:02:59.2]} 12... Bf5 {[%clk
0:02:26.3]} 13. g4 {[%clk 0:02:46.7]} 13... f6 {[%clk 0:02:13.4]} 14. gxf5
{[%clk 0:02:45.9]} 14... fxe5 {[%clk 0:02:13.5]} 15. Qd1 {[%clk 0:02:34.1]}
15... Be7 {[%clk 0:01:54.4]} 16. Qh5+ {[%clk 0:02:22.9]} 16... Kd8 {[%clk
0:01:48.8]} 17. Nd2 {[%clk 0:02:14.8]} 17... Nf6 {[%clk 0:01:44.9]} 18. Bxf6
{[%clk 0:02:13.1]} 18... Bxf6 {[%clk 0:01:41.5]} 19. O-O-O {[%clk 0:02:07.3]}
19... Ke7 {[%clk 0:01:34.4]} 20. e4 {[%clk 0:02:01.5]} 20... d4 {[%clk
0:01:26.5]} 21. f4 {[%clk 0:01:48.1]} 21... dxc3 {[%clk 0:01:24.4]} 22. bxc3
{[%clk 0:01:49]} 22... Qa6 {[%clk 0:01:17.1]} 23. fxe5 {[%clk 0:01:42.2]} 23...
Bxe5 {[%clk 0:01:07.7]} 24. f6+ {[%clk 0:01:42.5]} 24... Qxf6 {[%clk 0:00:25.5]}
25. Rhf1 {[%clk 0:01:41.7]} 25... Qe6 {[%clk 0:00:20.6]} 26. Qg5+ {[%clk
0:01:33.6]} 26... Bf6 {[%clk 0:00:14.1]} 27. Qc5+ {[%clk 0:01:32.9]} 27... Ke8
{[%clk 0:00:14.7]} 28. e5 {[%clk 0:01:31.5]} 28... Bg5 {[%clk 0:00:10.8]} 29.
Kb1 {[%clk 0:01:31.6]} 29... Rc8 {[%clk 0:00:10.5]} 30. Qg1 {[%clk 0:01:24.5]}
30... Rg8 {[%clk 0:00:09.8]} 31. Qf2 {[%clk 0:01:19.8]} 31... Rc6 {[%clk
0:00:08]} 32. Qf3 {[%clk 0:01:14.3]} 32... Be7 {[%clk 0:00:07.6]} 33. Qh5+
{[%clk 0:01:12.2]} 33... Rg6 {[%clk 0:00:06.1]} 34. Qxh7 {[%clk 0:01:11.4]}
34... Qxe5 {[%clk 0:00:03.4]} 35. Rde1 {[%clk 0:01:03.3]} 35... Qb5+ {[%clk
0:00:03.7]} 36. Ka1 {[%clk 0:01:00.7]} 36... Rge6 {[%clk 0:00:04.6]} 37. Rd1
{[%clk 0:00:50.2]} 37... Kd7 {[%clk 0:00:04]} 38. Rf7 {[%clk 0:00:41.7]} 38...
Rcd6 {[%clk 0:00:02.2]} 39. Qh3 {[%clk 0:00:27.6]} 39... Qe5 {[%clk 0:00:02.1]}
40. Qf3 {[%clk 0:00:26.9]} 40... Kc7 {[%clk 0:00:02.1]} 41. Nxc4 {[%clk
0:00:24.2]} 41... Rxd1+ {[%clk 0:00:02.2]} 42. Qxd1 {[%clk 0:00:24.9]} 42...
Qxc3+ {[%clk 0:00:02.9]} 43. Kb1 {[%clk 0:00:23.4]} 43... Qxc4 {[%clk
0:00:03.1]} 44. Rf2 {[%clk 0:00:17.5]} 44... Rb6+ {[%clk 0:00:03.1]} 45. Rb2
{[%clk 0:00:14.3]} 45... Qe4+ {[%clk 0:00:03.2]} 46. Ka1 {[%clk 0:00:11.8]}
46... Rxb2 {[%clk 0:00:03.2]} 47. Kxb2 {[%clk 0:00:11]} 47... Bf6+ {[%clk
0:00:03.8]} 48. Kb3 {[%clk 0:00:10.8]} 48... Qe6+ {[%clk 0:00:04.2]} 49. Kc2
{[%clk 0:00:10.5]} 49... Qxa2+ {[%clk 0:00:04.3]} 50. Kd3 {[%clk 0:00:10.7]}
50... Qd5+ {[%clk 0:00:04.6]} 51. Ke2 {[%clk 0:00:11.5]} 51... Qxd1+ {[%clk
0:00:05.3]} 52. Kxd1 {[%clk 0:00:12.4]} 52... Kd6 {[%clk 0:00:06]} 53. Kc2
{[%clk 0:00:11.6]} 53... Ke5 {[%clk 0:00:06.9]} 54. Kb3 {[%clk 0:00:12.5]} 54...
Kf4 {[%clk 0:00:07.4]} 55. Kc4 {[%clk 0:00:13.1]} 55... Kg4 {[%clk 0:00:07.9]}
56. Kd5 {[%clk 0:00:14]} 56... Kh3 {[%clk 0:00:08.2]} 57. Ke6 {[%clk 0:00:14.9]}
57... Bh8 {[%clk 0:00:07.5]} 58. Kd7 {[%clk 0:00:14.9]} 58... Kxh2 {[%clk
0:00:08]} 59. Kc7 {[%clk 0:00:15.6]} 59... b5 {[%clk 0:00:08.2]} 60. Kb7 {[%clk
0:00:15.4]} 60... b4 {[%clk 0:00:08.7]} 61. Ka6 {[%clk 0:00:16.3]} 61... b3
{[%clk 0:00:09]} 62. Ka5 {[%clk 0:00:17.2]} 62... b2 {[%clk 0:00:09.2]} 63. Ka4
{[%clk 0:00:18.1]} 63... b1=Q {[%clk 0:00:08.9]} 64. Ka3 {[%clk 0:00:19]} 64...
a5 {[%clk 0:00:08.5]} 0-1

[Event "Early-Titled-Tuesday-Blitz-March-26-2024"]
[Site "Chess.com"]
[Date "2024.03.26"]
[Round "5"]
[White "Resignify"]
[Black "KetiTsatsalashvili"]
[Result "0-1"]
[WhiteElo "2260"]
[BlackElo "2445"]
[TimeControl "180+1"]
[EndTime "8:55:07 PDT"]
[Termination "KetiTsatsalashvili won on time"]

1. e4 {[%clk 0:03:00.9]} 1... c5 {[%clk 0:02:59.2]} 2. Nc3 {[%clk 0:03:00.2]}
2... Nc6 {[%clk 0:02:54.6]} 3. g3 {[%clk 0:02:59.8]} 3... g6 {[%clk 0:02:54.4]}
4. Bg2 {[%clk 0:03:00]} 4... Bg7 {[%clk 0:02:55]} 5. d3 {[%clk 0:03:00.4]} 5...
d6 {[%clk 0:02:54.1]} 6. f4 {[%clk 0:03:00]} 6... Nf6 {[%clk 0:02:52.2]} 7. Nf3
{[%clk 0:02:59.7]} 7... O-O {[%clk 0:02:52.1]} 8. O-O {[%clk 0:02:59.2]} 8...
Nd4 {[%clk 0:02:47]} 9. Ne2 {[%clk 0:02:54.1]} 9... Nxf3+ {[%clk 0:02:39.7]} 10.
Bxf3 {[%clk 0:02:52.3]} 10... Bh3 {[%clk 0:02:37.2]} 11. Bg2 {[%clk 0:02:50.3]}
11... Bxg2 {[%clk 0:02:37.2]} 12. Kxg2 {[%clk 0:02:50.1]} 12... Rc8 {[%clk
0:02:24.5]} 13. c4 {[%clk 0:02:49.7]} 13... Nd7 {[%clk 0:02:16.2]} 14. Qc2
{[%clk 0:02:43.4]} 14... Nb8 {[%clk 0:02:14.7]} 15. Bd2 {[%clk 0:02:42.5]} 15...
Nc6 {[%clk 0:02:15.1]} 16. Bc3 {[%clk 0:02:42.1]} 16... Nd4 {[%clk 0:02:07.4]}
17. Nxd4 {[%clk 0:02:38.9]} 17... cxd4 {[%clk 0:02:08.3]} 18. Bd2 {[%clk
0:02:38.8]} 18... d5 {[%clk 0:02:05.8]} 19. exd5 {[%clk 0:02:00.3]} 19... Qxd5+
{[%clk 0:02:01.1]} 20. Kg1 {[%clk 0:01:59.2]} 20... Qf5 {[%clk 0:01:44.3]} 21.
Bb4 {[%clk 0:01:45.9]} 21... Rfe8 {[%clk 0:01:39.9]} 22. Rae1 {[%clk 0:01:37.5]}
22... Bf6 {[%clk 0:01:34.5]} 23. Qe2 {[%clk 0:01:36]} 23... b5 {[%clk
0:01:05.8]} 24. c5 {[%clk 0:01:25.6]} 24... a5 {[%clk 0:00:54.9]} 25. Bxa5
{[%clk 0:01:25.5]} 25... Qxc5 {[%clk 0:00:52]} 26. a3 {[%clk 0:01:11.1]} 26...
Qc2 {[%clk 0:00:45.3]} 27. Qxc2 {[%clk 0:01:07.5]} 27... Rxc2 {[%clk 0:00:46.2]}
28. Rf2 {[%clk 0:01:06.1]} 28... Rec8 {[%clk 0:00:43.4]} 29. Bb4 {[%clk
0:00:58.7]} 29... e6 {[%clk 0:00:43.5]} 30. Kf1 {[%clk 0:00:44.6]} 30... h5
{[%clk 0:00:42.7]} 31. Rxc2 {[%clk 0:00:43.4]} 31... Rxc2 {[%clk 0:00:43.6]} 32.
Re2 {[%clk 0:00:43.9]} 32... Rc1+ {[%clk 0:00:42.8]} 33. Re1 {[%clk 0:00:43.9]}
33... Rc2 {[%clk 0:00:41.2]} 34. Re2 {[%clk 0:00:44.2]} 34... Rc6 {[%clk
0:00:41]} 35. Ke1 {[%clk 0:00:34.8]} 35... Rc1+ {[%clk 0:00:37.5]} 36. Kd2
{[%clk 0:00:29.7]} 36... Rf1 {[%clk 0:00:31.8]} 37. Kc2 {[%clk 0:00:24.3]} 37...
g5 {[%clk 0:00:31.4]} 38. fxg5 {[%clk 0:00:23.4]} 38... Bxg5 {[%clk 0:00:31.7]}
39. Bd2 {[%clk 0:00:16.3]} 39... Bf6 {[%clk 0:00:21.3]} 40. Bf4 {[%clk
0:00:15.9]} 40... Kg7 {[%clk 0:00:17.6]} 41. b3 {[%clk 0:00:12.4]} 41... Kg6
{[%clk 0:00:16.7]} 42. a4 {[%clk 0:00:12.2]} 42... bxa4 {[%clk 0:00:17.1]} 43.
bxa4 {[%clk 0:00:13.1]} 43... Ra1 {[%clk 0:00:16.9]} 44. Kb3 {[%clk 0:00:13.4]}
44... Kf5 {[%clk 0:00:16.2]} 45. Ra2 {[%clk 0:00:13.1]} 45... Rd1 {[%clk
0:00:15.9]} 46. Kc2 {[%clk 0:00:12]} 46... Rf1 {[%clk 0:00:14.2]} 47. a5 {[%clk
0:00:11.6]} 47... Rf2+ {[%clk 0:00:06.8]} 48. Kb3 {[%clk 0:00:10.7]} 48... Rxa2
{[%clk 0:00:07.1]} 49. Kxa2 {[%clk 0:00:11]} 49... e5 {[%clk 0:00:06.7]} 50. Bd2
{[%clk 0:00:06.1]} 50... Bd8 {[%clk 0:00:06.6]} 51. a6 {[%clk 0:00:05.7]} 51...
Bb6 {[%clk 0:00:07.2]} 52. Kb3 {[%clk 0:00:05.3]} 52... e4 {[%clk 0:00:07.1]}
53. Kc4 {[%clk 0:00:03.8]} 53... e3 {[%clk 0:00:06.9]} 54. Ba5 {[%clk
0:00:02.4]} 54... Ba7 {[%clk 0:00:06.2]} 55. Kd5 {[%clk 0:00:01.9]} 55... Kg4
{[%clk 0:00:05.8]} 56. Ke4 {[%clk 0:00:01.3]} 56... f5+ {[%clk 0:00:05.2]} 0-1

[Event "Early-Titled-Tuesday-Blitz-March-26-2024"]
[Site "Chess.com"]
[Date "2024.03.26"]
[Round "5"]
[White "Barmen_EV"]
[Black "chessdjw"]
[Result "0-1"]
[WhiteElo "2565"]
[BlackElo "2809"]
[TimeControl "180+1"]
[EndTime "8:55:11 PDT"]
[Termination "chessdjw won by checkmate"]

1. e4 {[%clk 0:03:00.9]} 1... e5 {[%clk 0:02:57.6]} 2. Nf3 {[%clk 0:03:00.3]}
2... Nc6 {[%clk 0:02:58.2]} 3. Nc3 {[%clk 0:02:59.9]} 3... Nf6 {[%clk
0:02:57.5]} 4. Bb5 {[%clk 0:03:00]} 4... Bd6 {[%clk 0:02:54.9]} 5. O-O {[%clk
0:02:59.6]} 5... O-O {[%clk 0:02:54.1]} 6. Bxc6 {[%clk 0:03:00.1]} 6... dxc6
{[%clk 0:02:54.1]} 7. d3 {[%clk 0:03:01]} 7... h6 {[%clk 0:02:53.8]} 8. Ne2
{[%clk 0:03:00.1]} 8... c5 {[%clk 0:02:50.2]} 9. h3 {[%clk 0:02:58]} 9... Nd7
{[%clk 0:02:50]} 10. Kh2 {[%clk 0:02:56.1]} 10... Nb8 {[%clk 0:02:50.3]} 11. g4
{[%clk 0:02:55.5]} 11... Nc6 {[%clk 0:02:48]} 12. Ng3 {[%clk 0:02:55.8]} 12...
Be7 {[%clk 0:02:34.6]} 13. Be3 {[%clk 0:02:49.1]} 13... b6 {[%clk 0:02:32.5]}
14. Qd2 {[%clk 0:02:48.6]} 14... Nd4 {[%clk 0:01:45.5]} 15. Nxe5 {[%clk
0:02:21.6]} 15... Bf6 {[%clk 0:01:37.5]} 16. Bxd4 {[%clk 0:02:21.9]} 16... Qxd4
{[%clk 0:01:35.6]} 17. f4 {[%clk 0:01:47.3]} 17... Bxe5 {[%clk 0:01:19.5]} 18.
c3 {[%clk 0:01:47.1]} 18... Qd6 {[%clk 0:01:01.7]} 19. fxe5 {[%clk 0:01:47.2]}
19... Qxe5 {[%clk 0:01:02.6]} 20. Qf4 {[%clk 0:01:47.9]} 20... Qxf4 {[%clk
0:01:00.7]} 21. Rxf4 {[%clk 0:01:48.8]} 21... Be6 {[%clk 0:00:59.2]} 22. d4
{[%clk 0:01:47.4]} 22... cxd4 {[%clk 0:00:45.8]} 23. cxd4 {[%clk 0:01:48.3]}
23... Rfd8 {[%clk 0:00:46.1]} 24. d5 {[%clk 0:01:44.9]} 24... Bd7 {[%clk
0:00:46.3]} 25. Raf1 {[%clk 0:01:42.9]} 25... f6 {[%clk 0:00:46.1]} 26. h4
{[%clk 0:01:25.4]} 26... c6 {[%clk 0:00:45.2]} 27. g5 {[%clk 0:01:24.4]} 27...
hxg5 {[%clk 0:00:37.7]} 28. hxg5 {[%clk 0:01:25.3]} 28... fxg5 {[%clk
0:00:36.7]} 29. Rf7 {[%clk 0:01:23.7]} 29... Be8 {[%clk 0:00:27.1]} 30. Rf8+
{[%clk 0:00:53.1]} 30... Kh7 {[%clk 0:00:27.2]} 31. Rd1 {[%clk 0:00:32.4]} 31...
cxd5 {[%clk 0:00:26.9]} 32. exd5 {[%clk 0:00:33.3]} 32... Ba4 {[%clk 0:00:24.5]}
33. Rxd8 {[%clk 0:00:32.2]} 33... Rxd8 {[%clk 0:00:25.4]} 34. b3 {[%clk
0:00:31.6]} 34... Bd7 {[%clk 0:00:25]} 35. Ne4 {[%clk 0:00:28.4]} 35... Kg6
{[%clk 0:00:24.3]} 36. Kg3 {[%clk 0:00:27.4]} 36... Re8 {[%clk 0:00:23.2]} 37.
Nd6 {[%clk 0:00:22.6]} 37... Re2 {[%clk 0:00:20.2]} 38. Nc4 {[%clk 0:00:18]}
38... b5 {[%clk 0:00:16.7]} 39. Kf3 {[%clk 0:00:18.5]} 39... bxc4 {[%clk
0:00:08.5]} 40. bxc4 {[%clk 0:00:08.3]} 40... Rxa2 {[%clk 0:00:07.4]} 41. c5
{[%clk 0:00:08.1]} 41... Ra4 {[%clk 0:00:06.6]} 42. Ke3 {[%clk 0:00:07.2]} 42...
Bf5 {[%clk 0:00:05.2]} 43. c6 {[%clk 0:00:05]} 43... Re4+ {[%clk 0:00:05.5]} 44.
Kf2 {[%clk 0:00:05.6]} 44... Rc4 {[%clk 0:00:05.2]} 45. Ke3 {[%clk 0:00:03.5]}
45... g4 {[%clk 0:00:04.3]} 46. Ra1 {[%clk 0:00:04.2]} 46... g3 {[%clk
0:00:02.3]} 47. Rxa7 {[%clk 0:00:04.4]} 47... g2 {[%clk 0:00:02.6]} 48. Kf2
{[%clk 0:00:05.1]} 48... Rc2+ {[%clk 0:00:03.2]} 49. Kg1 {[%clk 0:00:05.3]}
49... Be4 {[%clk 0:00:04]} 50. Ra1 {[%clk 0:00:05.6]} 50... Bxd5 {[%clk
0:00:03.9]} 51. c7 {[%clk 0:00:04]} 51... Rxc7 {[%clk 0:00:03.6]} 52. Rd1 {[%clk
0:00:04.5]} 52... Bb7 {[%clk 0:00:03.3]} 53. Rd6+ {[%clk 0:00:04.6]} 53... Kh7
{[%clk 0:00:03.3]} 54. Rd1 {[%clk 0:00:04.6]} 54... Rf7 {[%clk 0:00:03.3]} 55.
Kh2 {[%clk 0:00:03.7]} 55... Rf1 {[%clk 0:00:03.5]} 56. Kg3 {[%clk 0:00:01.6]}
56... g1=Q+ {[%clk 0:00:03.7]} 57. Kh3 {[%clk 0:00:02.1]} 57... Qg2+ {[%clk
0:00:04]} 58. Kh4 {[%clk 0:00:03]} 58... Rf4+ {[%clk 0:00:04]} 59. Kh5 {[%clk
0:00:03.3]} 59... Qg4# {[%clk 0:00:04.7]} 0-1

[Event "Early-Titled-Tuesday-Blitz-March-26-2024"]
[Site "Chess.com"]
[Date "2024.03.26"]
[Round "5"]
[White "ilushka"]
[Black "ChristianArca"]
[Result "0-1"]
[WhiteElo "2502"]
[BlackElo "2675"]
[TimeControl "180+1"]
[EndTime "8:55:13 PDT"]
[Termination "ChristianArca won on time"]

1. Nf3 {[%clk 0:03:00.9]} 1... Nf6 {[%clk 0:02:58.3]} 2. g3 {[%clk 0:03:01.4]}
2... g6 {[%clk 0:02:51.6]} 3. b3 {[%clk 0:03:01.1]} 3... Bg7 {[%clk 0:02:52.5]}
4. Bb2 {[%clk 0:03:01.2]} 4... O-O {[%clk 0:02:50.8]} 5. Bg2 {[%clk 0:03:01.6]}
5... d6 {[%clk 0:02:50]} 6. d4 {[%clk 0:03:01.1]} 6... c6 {[%clk 0:02:49.9]} 7.
O-O {[%clk 0:03:00.7]} 7... Bf5 {[%clk 0:02:49]} 8. Nbd2 {[%clk 0:03:00.7]} 8...
Ne4 {[%clk 0:02:49.1]} 9. Re1 {[%clk 0:03:00.9]} 9... Nxd2 {[%clk 0:02:47.2]}
10. Qxd2 {[%clk 0:03:01.3]} 10... Be4 {[%clk 0:02:47.5]} 11. c4 {[%clk
0:02:56.2]} 11... Nd7 {[%clk 0:02:46.7]} 12. Bh3 {[%clk 0:02:41.9]} 12... Bxf3
{[%clk 0:02:14.6]} 13. exf3 {[%clk 0:02:42.8]} 13... e6 {[%clk 0:02:15.5]} 14.
f4 {[%clk 0:02:31.7]} 14... d5 {[%clk 0:02:13.5]} 15. c5 {[%clk 0:02:18]} 15...
b6 {[%clk 0:02:13.1]} 16. b4 {[%clk 0:02:16.7]} 16... a5 {[%clk 0:02:05.4]} 17.
a3 {[%clk 0:01:49.5]} 17... axb4 {[%clk 0:02:03.8]} 18. axb4 {[%clk 0:01:49.3]}
18... Qc7 {[%clk 0:02:02.5]} 19. Bc3 {[%clk 0:01:34.1]} 19... Rfd8 {[%clk
0:01:45.4]} 20. Qb2 {[%clk 0:01:28.4]} 20... Rdb8 {[%clk 0:01:43.5]} 21. Rxa8
{[%clk 0:01:26.3]} 21... Rxa8 {[%clk 0:01:43.5]} 22. Ra1 {[%clk 0:01:27]} 22...
Qb8 {[%clk 0:01:37.3]} 23. b5 {[%clk 0:00:54.9]} 23... Rxa1+ {[%clk 0:01:13.2]}
24. Qxa1 {[%clk 0:00:52.9]} 24... bxc5 {[%clk 0:01:00.3]} 25. bxc6 {[%clk
0:00:52]} 25... cxd4 {[%clk 0:01:00.7]} 26. Bxd4 {[%clk 0:00:31.3]} 26... Bxd4
{[%clk 0:01:01.6]} 27. Qxd4 {[%clk 0:00:30.9]} 27... Qb6 {[%clk 0:01:02.2]} 28.
cxd7 {[%clk 0:00:27.6]} 28... Qxd4 {[%clk 0:01:02.5]} 29. d8=Q+ {[%clk
0:00:27.7]} 29... Kg7 {[%clk 0:01:03.4]} 30. Qd6 {[%clk 0:00:24.4]} 30... Qd3
{[%clk 0:00:53.3]} 31. Bf1 {[%clk 0:00:22.3]} 31... Qd2 {[%clk 0:00:48.9]} 32.
Qe5+ {[%clk 0:00:22.3]} 32... Kg8 {[%clk 0:00:49.1]} 33. h4 {[%clk 0:00:22.7]}
33... h5 {[%clk 0:00:48.9]} 34. Kg2 {[%clk 0:00:17.5]} 34... Qb4 {[%clk
0:00:47.6]} 35. Bd3 {[%clk 0:00:15.4]} 35... Qb3 {[%clk 0:00:48.2]} 36. Qe2
{[%clk 0:00:05.9]} 36... Qb4 {[%clk 0:00:47.5]} 37. Qf3 {[%clk 0:00:05]} 37...
Qc3 {[%clk 0:00:46.6]} 38. Be2 {[%clk 0:00:03.7]} 38... Qd2 {[%clk 0:00:46.4]}
39. Qe3 {[%clk 0:00:04]} 39... Qb4 {[%clk 0:00:46.3]} 40. Qe5 {[%clk 0:00:03.6]}
40... Qd2 {[%clk 0:00:45.9]} 41. Bf3 {[%clk 0:00:03.9]} 41... Qd3 {[%clk
0:00:45.2]} 42. f5 {[%clk 0:00:03.1]} 42... gxf5 {[%clk 0:00:19]} 43. Bxh5
{[%clk 0:00:03.1]} 43... Qe4+ {[%clk 0:00:18.1]} 44. Qxe4 {[%clk 0:00:02.9]}
44... fxe4 {[%clk 0:00:19]} 45. Be2 {[%clk 0:00:02.5]} 45... Kg7 {[%clk
0:00:19.3]} 46. f3 {[%clk 0:00:02.4]} 46... f5 {[%clk 0:00:18.6]} 47. fxe4
{[%clk 0:00:02.5]} 47... fxe4 {[%clk 0:00:19.5]} 48. Kf2 {[%clk 0:00:02.6]}
48... d4 {[%clk 0:00:20]} 49. g4 {[%clk 0:00:02.9]} 49... Kf6 {[%clk 0:00:19]}
50. Kg3 {[%clk 0:00:03.3]} 50... Ke5 {[%clk 0:00:18.5]} 51. g5 {[%clk
0:00:03.3]} 51... d3 {[%clk 0:00:18.9]} 52. Bg4 {[%clk 0:00:03.5]} 52... e3
{[%clk 0:00:16.3]} 53. Kf3 {[%clk 0:00:02.7]} 53... Kd4 {[%clk 0:00:16.3]} 54.
Kg2 {[%clk 0:00:02.2]} 54... Kc3 {[%clk 0:00:15.6]} 55. g6 {[%clk 0:00:02.6]}
55... e2 {[%clk 0:00:16]} 56. Kf2 {[%clk 0:00:02.2]} 56... Kd2 {[%clk
0:00:16.5]} 57. g7 {[%clk 0:00:01.1]} 57... e1=Q+ {[%clk 0:00:17.1]} 58. Kf3
{[%clk 0:00:01.7]} 58... Qe3+ {[%clk 0:00:13.4]} 59. Kg2 {[%clk 0:00:01.7]}
59... Qe4+ {[%clk 0:00:14.3]} 0-1

[Event "Early-Titled-Tuesday-Blitz-March-26-2024"]
[Site "Chess.com"]
[Date "2024.03.26"]
[Round "5"]
[White "FormerProdigy"]
[Black "superchess02"]
[Result "1/2-1/2"]
[WhiteElo "2977"]
[BlackElo "2870"]
[TimeControl "180+1"]
[EndTime "8:55:19 PDT"]
[Termination "Game drawn by repetition"]

1. d4 {[%clk 0:03:00.9]} 1... Nf6 {[%clk 0:03:00.1]} 2. c4 {[%clk 0:03:01.5]}
2... g6 {[%clk 0:02:59.4]} 3. Nc3 {[%clk 0:03:01.6]} 3... Bg7 {[%clk 0:02:59.9]}
4. e4 {[%clk 0:03:01.5]} 4... d6 {[%clk 0:03:00.6]} 5. Nf3 {[%clk 0:03:02.4]}
5... O-O {[%clk 0:03:01.1]} 6. Be2 {[%clk 0:03:03.3]} 6... e5 {[%clk 0:03:01.4]}
7. O-O {[%clk 0:03:04.2]} 7... Nc6 {[%clk 0:03:01.7]} 8. d5 {[%clk 0:03:04.2]}
8... Ne7 {[%clk 0:03:02.1]} 9. b4 {[%clk 0:03:04.9]} 9... Nh5 {[%clk 0:03:00.5]}
10. Re1 {[%clk 0:02:57.2]} 10... f5 {[%clk 0:02:59.4]} 11. a4 {[%clk 0:02:57.8]}
11... Nf6 {[%clk 0:02:53.5]} 12. a5 {[%clk 0:02:55.7]} 12... fxe4 {[%clk
0:02:42.7]} 13. Ng5 {[%clk 0:02:55.7]} 13... Nf5 {[%clk 0:02:43.4]} 14. Ngxe4
{[%clk 0:02:49.8]} 14... Nxe4 {[%clk 0:02:43.2]} 15. Nxe4 {[%clk 0:02:50.7]}
15... Nd4 {[%clk 0:02:36.6]} 16. Bg5 {[%clk 0:02:33.7]} 16... Qe8 {[%clk
0:02:33.8]} 17. c5 {[%clk 0:02:29.8]} 17... Bf5 {[%clk 0:02:28.5]} 18. Bd3
{[%clk 0:02:22.8]} 18... Qf7 {[%clk 0:02:16.7]} 19. cxd6 {[%clk 0:02:07.4]}
19... Bxe4 {[%clk 0:02:03.4]} 20. Bxe4 {[%clk 0:02:08.3]} 20... cxd6 {[%clk
0:01:41.6]} 21. f3 {[%clk 0:01:57.2]} 21... Rac8 {[%clk 0:01:30.8]} 22. Rc1
{[%clk 0:01:55.5]} 22... Qd7 {[%clk 0:01:30.8]} 23. Qd3 {[%clk 0:01:52.4]} 23...
Bf6 {[%clk 0:01:25]} 24. Rxc8 {[%clk 0:01:28.9]} 24... Qxc8 {[%clk 0:01:25.9]}
25. Rc1 {[%clk 0:01:24.1]} 25... Qd7 {[%clk 0:01:24.6]} 26. Be3 {[%clk
0:01:16.9]} 26... Rc8 {[%clk 0:01:20]} 27. Rc4 {[%clk 0:01:05.7]} 27... Kg7
{[%clk 0:01:10.4]} 28. h3 {[%clk 0:00:56.6]} 28... Rc7 {[%clk 0:00:57.3]} 29.
Kh2 {[%clk 0:00:45.8]} 29... Qc8 {[%clk 0:00:55.5]} 30. a6 {[%clk 0:00:43.1]}
30... b6 {[%clk 0:00:28]} 31. Rxc7+ {[%clk 0:00:38.5]} 31... Qxc7 {[%clk
0:00:28.9]} 32. f4 {[%clk 0:00:31.5]} 32... Qe7 {[%clk 0:00:25.4]} 33. f5 {[%clk
0:00:24]} 33... Bg5 {[%clk 0:00:23.3]} 34. Bxd4 {[%clk 0:00:16.7]} 34... exd4
{[%clk 0:00:24.2]} 35. Qxd4+ {[%clk 0:00:17]} 35... Bf6 {[%clk 0:00:23.9]} 36.
Qd3 {[%clk 0:00:15.9]} 36... Qe5+ {[%clk 0:00:23.9]} 37. g3 {[%clk 0:00:16.2]}
37... gxf5 {[%clk 0:00:21.2]} 38. Bxf5 {[%clk 0:00:14.3]} 38... Qb2+ {[%clk
0:00:20.9]} 39. Qc2 {[%clk 0:00:12.9]} 39... Qxc2+ {[%clk 0:00:21.1]} 40. Bxc2
{[%clk 0:00:13.8]} 40... h6 {[%clk 0:00:19.9]} 41. Kg2 {[%clk 0:00:12]} 41...
Bc3 {[%clk 0:00:20.6]} 42. b5 {[%clk 0:00:10.7]} 42... Kf6 {[%clk 0:00:20.2]}
43. Kf3 {[%clk 0:00:09.3]} 43... Be5 {[%clk 0:00:20.5]} 44. Kg4 {[%clk
0:00:08.1]} 44... Bd4 {[%clk 0:00:20.3]} 45. Kh5 {[%clk 0:00:07.9]} 45... Kg7
{[%clk 0:00:20.2]} 46. g4 {[%clk 0:00:07.4]} 46... Be3 {[%clk 0:00:19.9]} 47. h4
{[%clk 0:00:07.4]} 47... Bd2 {[%clk 0:00:19.9]} 48. g5 {[%clk 0:00:07.3]} 48...
hxg5 {[%clk 0:00:18.8]} 49. hxg5 {[%clk 0:00:08.2]} 49... Bc3 {[%clk 0:00:19]}
50. Kg4 {[%clk 0:00:08.2]} 50... Kf7 {[%clk 0:00:19.5]} 51. Kf5 {[%clk
0:00:08.5]} 51... Be5 {[%clk 0:00:17.9]} 52. Bd1 {[%clk 0:00:08.6]} 52... Bd4
{[%clk 0:00:14.6]} 53. Bh5+ {[%clk 0:00:07.3]} 53... Ke7 {[%clk 0:00:15.2]} 54.
Kg6 {[%clk 0:00:05.8]} 54... Be5 {[%clk 0:00:15.2]} 55. Kh7 {[%clk 0:00:05.8]}
55... Kf8 {[%clk 0:00:15.6]} 56. Bg4 {[%clk 0:00:04.4]} 56... Bd4 {[%clk
0:00:16]} 57. Be6 {[%clk 0:00:04.1]} 57... Bc3 {[%clk 0:00:16.3]} 58. Kg6 {[%clk
0:00:04.1]} 58... Bd4 {[%clk 0:00:16]} 59. Bg4 {[%clk 0:00:04.3]} 59... Bc3
{[%clk 0:00:16]} 60. Kf5 {[%clk 0:00:04.2]} 60... Ke7 {[%clk 0:00:16.6]} 61. Bh5
{[%clk 0:00:04.3]} 61... Be5 {[%clk 0:00:16.7]} 62. Kg6 {[%clk 0:00:04.4]} 62...
Bb2 {[%clk 0:00:16.9]} 63. Kh7 {[%clk 0:00:04.3]} 63... Kf8 {[%clk 0:00:17.3]}
64. g6 {[%clk 0:00:04.1]} 64... Bg7 {[%clk 0:00:17.1]} 65. Bg4 {[%clk
0:00:04.3]} 65... Bf6 {[%clk 0:00:17.4]} 66. Be6 {[%clk 0:00:04.8]} 66... Bg7
{[%clk 0:00:17.9]} 67. Bg4 {[%clk 0:00:05.5]} 67... Bf6 {[%clk 0:00:18.4]} 68.
Be6 {[%clk 0:00:06.4]} 68... Bg7 {[%clk 0:00:18.9]} 69. Bg4 {[%clk 0:00:07.3]}
1/2-1/2